fUST/lending_fUST_20250530
["ID","MTS","AMOUNT","RATE_DAILY","PERIOD"]
[363099024,1748577040587,-430.0,0.00019178,2]
[363099026,1748577040596,-430.0,0.00019178,2]
[363099028,1748577040606,-430.26120866,0.00019178,2]
[363099030,1748577040615,-611.98,0.00019178,2]
[363099032,1748577040624,-430.0,0.00019178,2]
[363099034,1748577040634,-276.91118354,0.00019178,2]
[363099036,1748577040643,-430.0,0.00019178,2]
[363099038,1748577040652,-337.69099194,0.00019178,2]
[363099040,1748577040661,-430.0,0.00019178,2]
[363099042,1748577040670,-430.0,0.00019178,2]
[363099044,1748577040679,-430.0,0.00019178,2]
[363099046,1748577040688,-430.0,0.00019178,2]
[363099048,1748577040701,-430.0,0.00019178,2]
[363099050,1748577040710,-509.1,0.00019178,2]
[363099052,1748577040719,-441.94760495,0.00019178,2]
[363099054,1748577040729,-430.0,0.00019178,2]
[363099056,1748577040739,-430.0,0.00019178,2]
[363099058,1748577040749,-430.51561011,0.00019178,2]
[363099060,1748577040758,-430.0,0.00019178,2]
[363099062,1748577040767,-430.0,0.00019178,2]
[363099064,1748577040777,-430.0,0.00019178,2]
[363099066,1748577040786,-430.0,0.00019178,2]
[363099068,1748577040795,-430.0,0.00019178,2]
[363099070,1748577040805,-400.98856866,0.00019178,2]
[363099072,1748577040814,-430.0,0.00019178,2]
[363099074,1748577040823,-430.0,0.00019178,2]
[363099076,1748577040832,-430.0,0.00019178,2]
[363099078,1748577040842,-430.0,0.00019178,2]
[363099080,1748577040851,-430.0,0.00019178,2]
[363099082,1748577040860,-430.0,0.00019178,2]
[363099084,1748577040870,-430.0,0.00019178,2]
[363099086,1748577040879,-430.0,0.00019178,2]
[363099088,1748577040888,-300.60506843,0.00019178,2]
[363099090,1748577040897,-430.0,0.00019178,2]
[363099092,1748577040906,-430.0,0.00019178,2]
[363099094,1748577040918,-430.0,0.00019178,2]
[363099096,1748577040927,-363.21201325,0.00019178,2]
[363099098,1748577040935,-370.0,0.00019178,2]
[363099100,1748577040945,-430.0,0.00019178,2]
[363099102,1748577040954,-430.0,0.00019178,2]
[363099104,1748577040963,-479.49453095,0.00019178,2]
[363099106,1748577040972,-430.0,0.00019178,2]
[363099108,1748577040981,-752.48,0.00019178,2]
[363099110,1748577040990,-430.0,0.00019178,2]
[363099112,1748577040999,-410.44287126,0.00019178,2]
[363099114,1748577041008,-430.0,0.00019178,2]
[363099116,1748577041018,-430.0,0.00019178,2]
[363099118,1748577041028,-430.0,0.00019178,2]
[363099120,1748577041037,-430.0,0.00019178,2]
[363099122,1748577041046,-430.0,0.00019178,2]
[363099124,1748577041056,-420.0,0.00019178,2]
[363099126,1748577041065,-433.70165519,0.00019178,2]
[363099128,1748577041074,-430.0,0.00019178,2]
[363099130,1748577041084,-430.0,0.00019178,2]
[363099132,1748577041093,-963.69,0.00019178,2]
[363099134,1748577041103,-430.0,0.00019178,2]
[363099136,1748577041112,-550.17829308,0.00019178,2]
[363099138,1748577041122,-430.0,0.00019178,2]
[363099140,1748577041133,-430.0,0.00019178,2]
[363099142,1748577041143,-498.30399999,0.00019178,2]
[363099144,1748577041152,-400.0,0.00019178,2]
[363099146,1748577041163,-430.0,0.00019178,2]
[363099148,1748577041172,-436.52321224,0.00019178,2]
[363099150,1748577041182,-4169.18,0.00019178,2]
[363099152,1748577041191,-2010.2,0.00019178,2]
[363099154,1748577041201,-430.0,0.00019178,2]
[363099156,1748577041211,-762.87,0.00019178,2]
[363099158,1748577041220,-430.0,0.00019178,2]
[363099160,1748577041229,-430.0,0.00019178,2]
[363099162,1748577041238,-430.0,0.00019178,2]
[363099164,1748577041247,-430.0,0.00019178,2]
[363099166,1748577041256,-430.0,0.00019178,2]
[363099168,1748577041266,-430.0,0.00019178,2]
[363099170,1748577041275,-430.0,0.00019178,2]
[363099172,1748577041287,-430.0,0.00019178,2]
[363099174,1748577041297,-430.0,0.00019178,2]
[363099176,1748577041306,-430.0,0.00019178,2]
[363099178,1748577041316,-430.0,0.00019178,2]
[363099180,1748577041325,-430.0,0.00019178,2]
[363099181,1748577041334,-430.0,0.00019178,2]
[363099183,1748577041344,-430.0,0.00019178,2]
[363099185,1748577041356,-430.0,0.00019178,2]
[363099187,1748577041366,-5800.22,0.00019178,2]
[363099188,1748577041375,-430.0,0.00019178,2]
[363099190,1748577041384,-430.0,0.00019178,2]
[363099192,1748577041394,-430.0,0.00019178,2]
[363099193,1748577041404,-430.0,0.00019178,2]
[363099195,1748577041415,-430.0,0.00019178,2]
[363099197,1748577041425,-430.0,0.00019178,2]
[363099198,1748577041434,-430.0,0.00019178,2]
[363099200,1748577041444,-430.0,0.00019178,2]
[363099202,1748577041453,-430.0,0.00019178,2]
[363099204,1748577041462,-430.0,0.00019178,2]
[363099205,1748577041472,-430.0,0.00019178,2]
[363099207,1748577041481,-430.0,0.00019178,2]
[363099209,1748577041491,-562.18525974,0.00019178,2]
[363099210,1748577041500,-430.0,0.00019178,2]
[363099212,1748577041509,-534.82105401,0.00019178,2]
[363099214,1748577041518,-481.83,0.00019178,2]
[363099215,1748577041527,-430.0,0.00019178,2]
[363099217,1748577041536,-1439.82,0.00019178,2]
[363099219,1748577041545,-430.0,0.00019178,2]
[363099220,1748577041554,-430.0,0.00019178,2]
[363099222,1748577041563,-430.0,0.00019178,2]
[363099223,1748577041572,-430.0,0.00019178,2]
[363099225,1748577041581,-430.0,0.00019178,2]
[363099227,1748577041591,-470.0,0.00019178,2]
[363099228,1748577041600,-430.0,0.00019178,2]
[363099230,1748577041610,-430.0,0.00019178,2]
[363099232,1748577041620,-676.83,0.00019178,2]
[363099233,1748577041629,-430.0,0.00019178,2]
[363099235,1748577041639,-552.86,0.00019178,2]
[363099237,1748577041649,-884.82,0.00019178,2]
[363099239,1748577041658,-430.0,0.00019178,2]
[363099240,1748577041669,-451.20205262,0.00019178,2]
[363099242,1748577041679,-410.0,0.00019178,2]
[363099244,1748577041689,-430.0,0.00019178,2]
[363099246,1748577041698,-430.0,0.00019178,2]
[363099247,1748577041708,-555.98,0.00019178,2]
[363099249,1748577041717,-818.13,0.00019178,2]
[363099251,1748577041726,-430.0,0.00019178,2]
[363099253,1748577041735,-6862.09,0.00019178,2]
[363099254,1748577041744,-470.0,0.00019178,2]
[363099256,1748577041754,-430.0,0.00019178,2]
[363099258,1748577041763,-430.0,0.00019178,2]
[363099259,1748577041772,-3778.56,0.00019178,2]
[363099261,1748577041782,-265.14464213,0.00019178,2]
[363099263,1748577041791,-430.0,0.00019178,2]
[363099265,1748577041801,-430.0,0.00019178,2]
[363099266,1748577041810,-523.77120061,0.00019178,2]
[363099268,1748577041819,-449.6495247,0.00019178,2]
[363099270,1748577041829,-430.0,0.00019178,2]
[363099272,1748577041838,-430.0,0.00019178,2]
[363099273,1748577041847,-430.0,0.00019178,2]
[363099275,1748577041856,-433.86397208,0.00019178,2]
[363099277,1748577041866,-430.0,0.00019178,2]
[363099278,1748577041875,-1105.73,0.00019178,2]
[363099280,1748577041884,-430.0,0.00019178,2]
[363099282,1748577041893,-430.0,0.00019178,2]
[363099284,1748577041903,-3198.1,0.00019178,2]
[363099285,1748577041913,-430.0,0.00019178,2]
[363099287,1748577041923,-430.0,0.00019178,2]
[363099289,1748577041932,-430.0,0.00019178,2]
[363099291,1748577041941,-1019.28,0.00019178,2]
[363099292,1748577041951,-500.0,0.00019178,2]
[363099294,1748577041960,-430.0,0.00019178,2]
[363099296,1748577041970,-430.0,0.00019178,2]
[363099298,1748577041979,-430.0,0.00019178,2]
[363099299,1748577041988,-1218.66,0.00019178,2]
[363099301,1748577041997,-430.0,0.00019178,2]
[363099303,1748577042006,-430.0,0.00019178,2]
[363099305,1748577042016,-440.0,0.00019178,2]
[363099306,1748577042025,-430.0,0.00019178,2]
[363099308,1748577042034,-430.0,0.00019178,2]
[363099310,1748577042043,-1103.19,0.00019178,2]
[363099312,1748577042053,-430.0,0.00019178,2]
[363099314,1748577042063,-873.99,0.00019178,2]
[363099315,1748577042072,-431.18,0.00019178,2]
[363099317,1748577042081,-475.99,0.00019178,2]
[363099319,1748577042091,-430.0,0.00019178,2]
[363099321,1748577042100,-3848.77,0.00019178,2]
[363099322,1748577042110,-406.30004039,0.00019178,2]
[363099324,1748577042120,-430.0,0.00019178,2]
[363099326,1748577042129,-430.0,0.00019178,2]
[363099328,1748577042138,-430.0,0.00019178,2]
[363099330,1748577042148,-440.19,0.00019178,2]
[363099331,1748577042158,-430.0,0.00019178,2]
[363099333,1748577042168,-430.0,0.00019178,2]
[363099335,1748577042178,-430.0,0.00019178,2]
[363099337,1748577042188,-1093.67,0.00019178,2]
[363099338,1748577042198,-327.81448343,0.00019178,2]
[363099340,1748577042208,-1224.27,0.00019178,2]
[363099342,1748577042218,-430.0,0.00019178,2]
[363099343,1748577042227,-430.0,0.00019178,2]
[363099345,1748577042236,-430.0,0.00019178,2]
[363099347,1748577042246,-496.49,0.00019178,2]
[363099349,1748577042255,-430.0,0.00019178,2]
[363099358,1748577042359,-430.0,0.00019178,2]
[363099360,1748577042370,-430.0,0.00019178,2]
[363099363,1748577042379,-430.0,0.00019178,2]
[363099366,1748577042389,-430.0,0.00019178,2]
[363099368,1748577042399,-430.0,0.00019178,2]
[363099370,1748577042408,-1221.31,0.00019178,2]
[363099372,1748577042418,-2443.56,0.00019178,2]
[363099374,1748577042427,-430.0,0.00019178,2]
[363099375,1748577042437,-430.0,0.00019178,2]
[363099377,1748577042446,-430.0,0.00019178,2]
[363099379,1748577042455,-430.0,0.00019178,2]
[363099381,1748577042464,-430.0,0.00019178,2]
[363099382,1748577042473,-430.0,0.00019178,2]
[363099384,1748577042482,-430.0,0.00019178,2]
[363099386,1748577042492,-430.0,0.00019178,2]
[363099388,1748577042502,-430.0,0.00019178,2]
[363099390,1748577042511,-430.0,0.00019178,2]
[363099391,1748577042521,-430.0,0.00019178,2]
[363099393,1748577042530,-472.74,0.00019178,2]
[363099395,1748577042540,-430.0,0.00019178,2]
[363099397,1748577042550,-430.0,0.00019178,2]
[363099398,1748577042559,-1818.52,0.00019178,2]
[363099400,1748577042569,-450.0,0.00019178,2]
[363099402,1748577042578,-580.76,0.00019178,2]
[363099403,1748577042588,-430.0,0.00019178,2]
[363099405,1748577042597,-430.0,0.00019178,2]
[363099407,1748577042606,-430.0,0.00019178,2]
[363099408,1748577042615,-2315.05,0.00019178,2]
[363099410,1748577042625,-430.0,0.00019178,2]
[363099411,1748577042634,-430.0,0.00019178,2]
[363099413,1748577042643,-430.0,0.00019178,2]
[363099414,1748577042652,-430.0,0.00019178,2]
[363099416,1748577042661,-430.0,0.00019178,2]
[363099418,1748577042671,-430.0,0.00019178,2]
[363099420,1748577042680,-657.15,0.00019178,2]
[363099421,1748577042689,-430.0,0.00019178,2]
[363099423,1748577042699,-1266.25,0.00019178,2]
[363099425,1748577042708,-430.0,0.00019178,2]
[363099427,1748577042717,-430.0,0.00019178,2]
[363099428,1748577042726,-430.0,0.00019178,2]
[363099430,1748577042737,-185.48670589,0.00019178,2]
[363099432,1748577042747,-430.0,0.00019178,2]
[363099434,1748577042756,-430.0,0.00019178,2]
[363099436,1748577042765,-430.0,0.00019178,2]
[363099437,1748577042775,-2696.49,0.00019178,2]
[363099439,1748577042784,-430.0,0.00019178,2]
[363099441,1748577042794,-415.40300432,0.00019178,2]
[363099443,1748577042803,-430.0,0.00019178,2]
[363099444,1748577042812,-430.0,0.00019178,2]
[363099446,1748577042822,-430.0,0.00019178,2]
[363099448,1748577042831,-430.0,0.00019178,2]
[363099450,1748577042841,-430.0,0.00019178,2]
[363099451,1748577042850,-430.0,0.00019178,2]
[363099453,1748577042859,-430.0,0.00019178,2]
[363099455,1748577042869,-430.0,0.00019178,2]
[363099457,1748577042878,-430.0,0.00019178,2]
[363099458,1748577042887,-451.01,0.00019178,2]
[363099460,1748577042897,-570.99,0.00019178,2]
[363099462,1748577042906,-430.0,0.00019178,2]
[363099464,1748577042916,-430.0,0.00019178,2]
[363099467,1748577042926,-430.0,0.00019178,2]
[363099468,1748577042935,-842.8,0.00019178,2]
[363099470,1748577042944,-430.0,0.00019178,2]
[363099472,1748577042954,-455.07121492,0.00019178,2]
[363099474,1748577042963,-430.0,0.00019178,2]
[363099476,1748577042972,-430.0,0.00019178,2]
[363099477,1748577042982,-1871.81,0.00019178,2]
[363099479,1748577042992,-430.0,0.00019178,2]
[363099481,1748577043001,-430.0,0.00019178,2]
[363099483,1748577043010,-992.89,0.00019178,2]
[363099484,1748577043019,-430.0,0.00019178,2]
[363099486,1748577043028,-526.35,0.00019178,2]
[363099488,1748577043037,-294.91963883,0.00019221,2]
[363099490,1748577043047,-977.71262167,0.00019348,2]
[363099492,1748577043057,-1031.30062167,0.00019351,2]
[363099493,1748577043066,-573.46618323,0.00019412,2]
[363099495,1748577043075,-160.0,0.00019425,2]
[363099497,1748577043084,-229.30959854,0.00019425,2]
[363099499,1748577043093,-160.0,0.00019425,2]
[363099500,1748577043102,-160.0,0.00019425,2]
[363099502,1748577043111,-212.7380601,0.00019425,2]
[363099504,1748577043120,-842.5625,0.00019425,2]
[363099506,1748577043129,-423.39538199,0.00019425,2]
[363099507,1748577043139,-160.0,0.00019431,2]
[363099509,1748577043148,-430.0,0.00019451,2]
[363099511,1748577043157,-430.0,0.00019451,2]
[363099513,1748577043167,-1740.01,0.00019451,2]
[363099514,1748577043175,-888.52,0.00019451,2]
[363099516,1748577043185,-430.0,0.00019451,2]
[363099518,1748577043194,-430.0,0.00019451,2]
[363099520,1748577043203,-5313.36,0.00019451,2]
[363099521,1748577043213,-1706.41,0.00019451,2]
[363099523,1748577043221,-430.0,0.00019451,2]
[363099525,1748577043231,-430.0,0.00019452,2]
[363099527,1748577043240,-430.0,0.00019452,2]
[363099528,1748577043249,-430.0,0.00019452,2]
[363099530,1748577043259,-225.37249477,0.00019452,2]
[363099532,1748577043269,-430.0,0.00019452,2]
[363099534,1748577043280,-430.0,0.00019452,2]
[363099536,1748577043290,-430.0,0.00019452,2]
[363099537,1748577043300,-430.0,0.00019452,2]
[363099539,1748577043311,-453.00019899,0.00019452,2]
[363099541,1748577043324,-430.0,0.00019452,2]
[363099543,1748577043335,-430.0,0.00019452,2]
[363099545,1748577043345,-430.0,0.00019452,2]
[363099546,1748577043355,-310.47288694,0.00019452,2]
[363099548,1748577043364,-536.90917548,0.00019452,2]
[363099550,1748577043374,-430.0,0.00019452,2]
[363099552,1748577043384,-352.99487339,0.00019452,2]
[363099554,1748577043393,-534.9343198,0.00019452,2]
[363099555,1748577043402,-430.0,0.00019452,2]
[363099557,1748577043411,-430.0,0.00019452,2]
[363099559,1748577043423,-270.0,0.00019452,2]
[363099561,1748577043433,-430.0,0.00019452,2]
[363099563,1748577043443,-430.0,0.00019452,2]
[363099564,1748577043459,-430.0,0.00019452,2]
[363099566,1748577043469,-430.0,0.00019452,2]
[363099568,1748577043478,-430.0,0.00019452,2]
[363099570,1748577043489,-450.95038772,0.00019452,2]
[363099572,1748577043498,-430.0,0.00019452,2]
[363099573,1748577043509,-430.0,0.00019452,2]
[363099575,1748577043518,-430.0,0.00019452,2]
[363099577,1748577043530,-482.62800901,0.00019452,2]
[363099579,1748577043539,-430.0,0.00019452,2]
[363099581,1748577043549,-430.0,0.00019452,2]
[363099582,1748577043558,-430.0,0.00019452,2]
[363099584,1748577043567,-430.0,0.00019452,2]
[363099586,1748577043576,-570.38849936,0.00019452,2]
[363099588,1748577043586,-430.0,0.00019452,2]
[363099589,1748577043595,-430.0,0.00019452,2]
[363099591,1748577043604,-430.0,0.00019452,2]
[363099593,1748577043613,-430.0,0.00019452,2]
[363099595,1748577043622,-430.0,0.00019452,2]
[363099597,1748577043630,-430.0,0.00019452,2]
[363099598,1748577043639,-804.37,0.00019452,2]
[363099600,1748577043648,-545.67,0.00019452,2]
[363099602,1748577043656,-430.0,0.00019452,2]
[363099604,1748577043667,-465.24,0.00019452,2]
[363099605,1748577043676,-453.26,0.00019452,2]
[363099607,1748577043685,-430.0,0.00019452,2]
[363099609,1748577043694,-430.0,0.00019452,2]
[363099611,1748577043704,-430.0,0.00019452,2]
[363099613,1748577043713,-430.0,0.00019452,2]
[363099615,1748577043722,-430.0,0.00019452,2]
[363099617,1748577043731,-430.0,0.00019452,2]
[363099619,1748577043740,-430.0,0.00019452,2]
[363099621,1748577043749,-691.04,0.00019452,2]
[363099623,1748577043758,-430.0,0.00019452,2]
[363099625,1748577043767,-430.0,0.00019452,2]
[363099627,1748577043776,-430.0,0.00019452,2]
[363099629,1748577043786,-430.0,0.00019452,2]
[363099631,1748577043795,-436.38369222,0.00019452,2]
[363099633,1748577043805,-430.0,0.00019452,2]
[363099635,1748577043814,-430.0,0.00019452,2]
[363099637,1748577043823,-430.0,0.00019452,2]
[363099639,1748577043832,-430.0,0.00019452,2]
[363099641,1748577043841,-430.0,0.00019452,2]
[363099642,1748577043850,-430.0,0.00019452,2]
[363099643,1748577043859,-430.0,0.00019452,2]
[363099644,1748577043868,-430.0,0.00019452,2]
[363099645,1748577043876,-430.0,0.00019452,2]
[363099646,1748577043885,-163.5218092,0.00019452,2]
[363099647,1748577043894,-430.0,0.00019452,2]
[363099648,1748577043903,-430.0,0.00019452,2]
[363099649,1748577043912,-430.0,0.00019452,2]
[363099650,1748577043922,-564.92835148,0.00019452,2]
[363099651,1748577043931,-430.0,0.00019452,2]
[363099652,1748577043939,-430.0,0.00019452,2]
[363099653,1748577043948,-430.0,0.00019452,2]
[363099654,1748577043957,-611.98,0.00019452,2]
[363099655,1748577043966,-430.0,0.00019452,2]
[363099656,1748577043974,-430.0,0.00019452,2]
[363099657,1748577043983,-430.0,0.00019452,2]
[363099658,1748577043992,-430.0,0.00019452,2]
[363099659,1748577044001,-432.027105,0.00019452,2]
[363099660,1748577044010,-430.0,0.00019452,2]
[363099661,1748577044019,-430.0,0.00019452,2]
[363099662,1748577044027,-430.0,0.00019452,2]
[363099663,1748577044036,-430.0,0.00019452,2]
[363099664,1748577044045,-430.0,0.00019452,2]
[363099665,1748577044054,-456.91233808,0.00019452,2]
[363099666,1748577044064,-430.0,0.00019452,2]
[363099667,1748577044074,-366.10549734,0.00019452,2]
[363099668,1748577044172,-430.0,0.00019452,2]
[363099669,1748577044182,-436.87976464,0.00019452,2]
[363099670,1748577044191,-430.0,0.00019452,2]
[363099671,1748577044201,-430.0,0.00019452,2]
[363099672,1748577044210,-300.0,0.00019452,2]
[363099673,1748577044220,-430.0,0.00019452,2]
[363099674,1748577044230,-430.0,0.00019452,2]
[363099675,1748577044240,-430.0,0.00019452,2]
[363099676,1748577044250,-430.0,0.00019452,2]
[363099677,1748577044259,-752.48,0.00019452,2]
[363099679,1748577044269,-430.0,0.00019452,2]
[363099680,1748577044280,-430.0,0.00019452,2]
[363099681,1748577044289,-430.0,0.00019452,2]
[363099683,1748577044299,-400.0,0.00019452,2]
[363099684,1748577044308,-502.40494254,0.00019452,2]
[363099686,1748577044318,-430.0,0.00019452,2]
[363099688,1748577044328,-963.69,0.00019452,2]
[363099690,1748577044337,-430.0,0.00019452,2]
[363099692,1748577044346,-430.0,0.00019452,2]
[363099694,1748577044358,-430.0,0.00019452,2]
[363099696,1748577044369,-482.87887871,0.00019452,2]
[363099698,1748577044379,-4169.18,0.00019452,2]
[363099700,1748577044388,-2010.2,0.00019452,2]
[363099702,1748577044398,-762.87,0.00019452,2]
[363099704,1748577044408,-430.0,0.00019452,2]
[363099706,1748577044417,-438.38865541,0.00019452,2]
[363099708,1748577044427,-430.0,0.00019452,2]
[363099710,1748577044436,-430.0,0.00019452,2]
[363099712,1748577044445,-266.913369,0.00019452,2]
[363099714,1748577044455,-430.0,0.00019452,2]
[363099716,1748577044464,-430.0,0.00019452,2]
[363099718,1748577044473,-430.0,0.00019452,2]
[363099720,1748577044483,-360.29865427,0.00019452,2]
[363099722,1748577044492,-5800.22,0.00019452,2]
[363099723,1748577044502,-409.84358086,0.00019452,2]
[363099725,1748577044512,-430.0,0.00019452,2]
[363099727,1748577044521,-430.0,0.00019452,2]
[363099730,1748577044531,-430.0,0.00019452,2]
[363099732,1748577044541,-256.65447074,0.00019452,2]
[363099781,1748577045006,-197.0,0.00017066,2]
[363099783,1748577045016,-430.0,0.00019178,2]
[363099785,1748577045025,-89.5618136,0.00019178,2]
[363100078,1748577048870,-154.52,0.00016026,2]
[363100079,1748577048880,-340.4381864,0.00019178,2]
[363100080,1748577048889,-430.0,0.00019178,2]
[363100081,1748577048898,-430.0,0.00019178,2]
[363100082,1748577048907,-430.0,0.00019178,2]
[363100083,1748577048917,-173.34552926,0.00019452,2]
[363100084,1748577048928,-430.0,0.00019452,2]
[363100085,1748577048937,-430.0,0.00019452,2]
[363100086,1748577048946,-430.0,0.00019452,2]
[363100087,1748577048956,-430.0,0.00019452,2]
[363100088,1748577048966,-481.83,0.00019452,2]
[363100089,1748577048976,-430.0,0.00019452,2]
[363100090,1748577048985,-1439.82,0.00019452,2]
[363100091,1748577048995,-430.0,0.00019452,2]
[363100092,1748577049004,-430.0,0.00019452,2]
[363100093,1748577049013,-430.0,0.00019452,2]
[363100094,1748577049023,-430.0,0.00019452,2]
[363100095,1748577049032,-430.0,0.00019452,2]
[363100096,1748577049041,-400.0,0.00019452,2]
[363100097,1748577049051,-430.0,0.00019452,2]
[363100098,1748577049060,-676.83,0.00019452,2]
[363100099,1748577049069,-430.0,0.00019452,2]
[363100100,1748577049079,-552.86,0.00019452,2]
[363100101,1748577049089,-884.82,0.00019452,2]
[363100102,1748577049098,-430.0,0.00019452,2]
[363100103,1748577049107,-430.0,0.00019452,2]
[363100104,1748577049117,-430.0,0.00019452,2]
[363100105,1748577049125,-555.98,0.00019452,2]
[363100106,1748577049135,-818.13,0.00019452,2]
[363100107,1748577049143,-430.0,0.00019452,2]
[363100108,1748577049153,-6862.09,0.00019452,2]
[363100109,1748577049162,-312.66794337,0.00019452,2]
[363100110,1748577049173,-400.0,0.00019452,2]
[363100111,1748577049182,-1669.07843311,0.00019452,2]
[363100112,1748577049194,-512.78156304,0.00019452,2]
[363100113,1748577049206,-1596.70000385,0.00019452,2]
[363100114,1748577049216,-430.0,0.00019452,2]
[363100115,1748577049225,-430.0,0.00019452,2]
[363100116,1748577049235,-430.0,0.00019452,2]
[363100117,1748577049244,-430.0,0.00019452,2]
[363100118,1748577049253,-430.0,0.00019452,2]
[363100119,1748577049263,-430.0,0.00019452,2]
[363100120,1748577049273,-755.90416002,0.00019452,2]
[363100580,1748577137585,-3939.54081536,0.00016527,2]
[363100581,1748577137611,-161.45918464,0.00016686,2]
[363100586,1748577186986,156.99,0.00014682,2]
[363100587,1748577187407,235.48,0.00015349,2]
[363100591,1748577211218,-313.97,0.00016016,2]
[363100592,1748577211241,-3910.74488904,0.00016519,2]
[363100593,1748577211276,-356.28511096,0.00016684,2]
[363100595,1748577257552,199.21,0.00015349,2]
[363100596,1748577281291,-265.61,0.00016017,2]
[363100597,1748577281314,-164.39,0.00016684,2]
[363100598,1748577331810,175.83,0.00015362,2]
[363100599,1748577348697,-234.44,0.0001603,2]
[363100600,1748577348721,-195.56,0.00016698,2]
[363100601,1748577402670,152.39,0.00015386,2]
[363100602,1748577414214,-203.19,0.00016055,2]
[363100603,1748577414240,-253.99,0.00016723,2]
[363100604,1748577414265,-231.82,0.00016845,2]
[363100606,1748577484042,-169.94,0.00016053,2]
[363100607,1748577484067,-212.43,0.00016721,2]
[363100608,1748577484095,-117.63,0.00016845,2]
[363100609,1748577549310,-177.67,0.00016714,2]
[363100610,1748577549334,-9.33,0.00016845,2]
[363100611,1748577606571,-23.564271,0.00016845,2]
[363100612,1748577606593,-173.960881,0.00017313,2]
[363100613,1748577606618,-213.2,0.00017383,2]
[363100614,1748577606639,-398.57426632,0.00017493,2]
[363100615,1748577606661,-199.28713316,0.00017494,2]
[363100616,1748577606686,-546.1098759,0.00017538,2]
[363100617,1748577606707,-160.0,0.00017846,2]
[363100618,1748577606729,-225.4149795,0.00018035,2]
[363100619,1748577606752,-248.73,0.00018051,2]
[363100620,1748577606773,-300.0,0.00018719,2]
[363100621,1748577606795,-300.0,0.00018719,2]
[363100622,1748577606818,-300.0,0.00018719,2]
[363100623,1748577606839,-300.0,0.00018719,2]
[363100624,1748577606864,-284.27,0.0001872,2]
[363100625,1748577606886,-21294.38859312,0.0001872,2]
[363100626,1748577692002,-438.236708,0.00018088,2]
[363100627,1748577692025,-7523.12781705,0.0001872,2]
[363100628,1748577692048,-1200.0,0.00018884,2]
[363100629,1748577692071,-552.83547495,0.00018885,2]
[363100637,1748577930042,696.38259241,0.00013699,2]
[363100638,1748577930067,491.51597959,0.00013699,2]
[363100640,1748578007968,-170.0,0.00017576,2]
[363100689,1748578050097,-45.06022173,0.00017576,2]
[363100690,1748578050120,-167.17702541,0.00018084,2]
[363100691,1748578052136,-213.33489188,0.00018084,2]
[363100692,1748578082142,174.2,0.00015377,2]
[363100693,1748578149154,-232.27,0.00016046,2]
[363100694,1748578149178,-290.34,0.00016714,2]
[363100695,1748578149200,-327.099,0.00017383,2]
[363100699,1748578224481,176.27,0.00015345,2]
[363100749,1748578232060,-23.58191635,0.00016012,2]
[363101348,1748578243171,-211.44808365,0.00016012,2]
[363101350,1748578243180,-121.06308062,0.00016679,2]